{"text_format":"1","workbook":"xlsx","n_sheets":2,"sheets":["رصد 4 عربى","شهاده نصف العام"],"not_rendered":{"charts":0,"images":4,"macros":1,"external_links":0,"defined_names":1,"comments":0,"pivot_tables":0},"unopened":[],"bounds":{"document_bytes":16777216,"sheet_cells":100000,"rows_first":2000,"rows_last":500,"rows_between":2000,"halvings":0,"cell_chars":16384,"cell_head_chars":4096},"cells_cut":0,"cells_raw":0,"read":"whole","date_system":"1900"}

{"sheet":"رصد 4 عربى","index":0,"n_rows":64,"n_cols":144,"rows_kept":64,"cut":false,"hidden":false,"merged":[[7,110,9,110],[7,111,9,111],[7,112,9,112],[7,84,9,84],[2,10,3,24],[8,41,8,43],[8,51,8,53],[7,54,9,54],[7,60,9,60],[6,51,6,60],[6,4,11,4],[7,142,9,142],[6,92,9,92],[7,93,7,95],[8,93,8,95],[6,93,6,102],[7,96,9,96],[7,102,9,102],[7,70,9,70],[7,118,9,118],[6,61,6,70],[6,71,6,80],[7,80,9,80],[7,81,7,83],[8,81,8,83],[6,81,6,90],[7,90,9,90],[7,51,7,53],[8,61,8,63],[7,64,9,64],[7,59,9,59],[7,24,9,24],[8,45,8,47],[8,25,8,27],[7,55,7,57],[7,58,9,58],[6,31,6,40],[7,31,7,33],[8,31,8,33],[7,34,9,34],[7,40,9,40],[6,41,6,50],[8,35,8,37],[7,41,7,43],[7,44,9,44],[7,50,9,50],[7,11,7,13],[8,11,8,13],[7,21,7,23],[8,21,8,23],[6,21,6,30],[6,11,6,20],[7,30,9,30],[7,25,7,27],[7,14,9,14],[7,20,9,20],[63,88,63,89],[63,100,63,101],[62,88,62,89],[62,100,62,101],[62,121,62,123],[62,130,62,132],[63,7,63,8],[63,9,63,10],[63,12,63,13],[63,48,63,49],[62,48,62,49],[62,62,62,63],[62,66,62,68],[62,73,62,75],[62,7,62,8],[62,9,62,10],[62,12,62,13],[62,25,62,27],[62,30,62,32],[62,37,62,39],[7,141,9,141],[7,127,9,127],[7,116,9,116],[7,117,9,117],[7,119,9,119],[7,121,9,121],[7,124,9,124],[7,126,9,126],[7,130,9,130],[7,132,9,132],[7,97,7,99],[7,85,7,87],[7,71,7,73],[8,71,8,73],[7,61,7,63],[7,69,9,69],[7,139,9,139],[7,128,9,128],[7,129,9,129],[7,131,9,131],[7,133,9,133],[7,136,9,136],[7,138,9,138],[7,134,9,134],[7,135,9,135],[7,137,9,137],[6,131,6,136],[7,103,7,105],[7,106,9,106],[7,107,7,109],[8,103,8,105],[6,113,6,118],[7,113,9,113],[7,115,9,115],[7,114,9,114],[6,103,6,112],[7,125,9,125],[7,100,9,100],[7,101,9,101],[6,119,6,124],[6,125,6,130],[7,88,9,88],[7,89,9,89],[7,120,9,120],[8,107,8,109],[8,97,8,99],[2,35,3,38],[2,75,3,78],[7,35,7,37],[6,91,9,91],[7,75,7,77],[7,65,7,67],[7,68,9,68],[7,78,9,78],[7,79,9,79],[8,85,8,87],[6,1,11,1],[6,137,6,142],[7,140,9,140],[7,122,9,122],[7,123,9,123],[2,136,3,141],[6,7,11,7],[6,8,11,8],[6,9,9,9],[6,10,9,10],[4,42,4,80],[8,65,8,67],[8,75,8,77],[7,74,9,74],[8,15,8,17],[4,82,4,142],[5,0,5,40],[5,42,5,80],[5,82,5,142],[6,0,11,0],[7,15,7,17],[7,18,9,18],[7,19,9,19],[6,3,11,3],[6,5,11,5],[4,7,4,40],[11,9,11,10],[10,9,10,10],[7,28,9,28],[7,29,9,29],[6,143,11,143],[2,96,3,131],[2,53,3,72],[6,6,11,6],[7,38,9,38],[7,39,9,39],[8,55,8,57],[7,45,7,47],[7,48,9,48],[7,49,9,49]]}
[]
[null,null,null,null,null,null,"محافظة القاهرة"]
[null,null,null,null,null,null,"مديرية التربية والتعليم",null,null,null,"الدور الأول 2021 / 2022",null,null,null,null,null,null,null,null,null,null,null,null,null,null,null,null,null,null,null,null,null,null,null,null,null,null,null,null,null,null,null,null,null,null,null,null,null,null,null,null,null,null,"الدور الأول 2021 / 2022",null,null,null,null,null,null,null,null,null,null,null,null,null,null,null,null,null,null,null,null,null,null,null,null,null,null,null,null,null,null,null,null,null,null,null,null,null,null,null,null,null,null,"الدور الأول 2021 / 2022",null,null,null,null,null,null,null,null,null,null,null,null,null,null,null,null,null,null,null,null,null,null,null,null,null,null,null,null,null,null,null,null,null,null,null,null,null,null,null,"كشف (   )"]
[null,null,{"$f":"MAX(F13:F44)","v":220},null,null,null,"إدارة المعادى التعليميه"]
[null,null,null,null,null,null,"مدرسة حدائق المعادى القوميه","كشف بدرجات تلاميذ الصف الرابـــع الإبتدائى لمدرسة                       "]
["                                                                                      طبقا للقرار الوزارى (133) بتاريخ 21 / 9 / 2021"]
["مسلسل","رقم الجلوس",null,"م","كود الطالب","رقم الجلوس","إسم التلميذ","رقم المراقبة","رقم المراقبة","رقم المراقبة","رقم المراقبة","اللغة العربية",null,null,null,null,null,null,null,null,null,"الرياضيات",null,null,null,null,null,null,null,null,null,"الدراســات الإجتماعية",null,null,null,null,null,null,null,null,null,"العلوم",null,null,null,null,null,null,null,null,null,"اللغة الأجنبية ",null,null,null,null,null,null,null,null,null,"المهارات المهنية",null,null,null,null,null,null,null,null,null,"تكنولوجيا المعلومات والاتصالات",null,null,null,null,null,null,null,null,null,"التربية الدينية",null,null,null,null,null,null,null,null,null,"المجموع الكلى","التقييم بالألوان","المستوى الرفيع E",null,null,null,null,null,null,null,null,null,"المستوى الرفيع F",null,null,null,null,null,null,null,null,null,"القيم واحترام الأخر",null,null,null,null,null,"التربية الفنية",null,null,null,null,null,"التربية الموسيقية",null,null,null,null,null,"التربية الرياضية",null,null,null,null,null,"التوكاتسو",null,null,null,null,null,"الترتيب"]
[null,null,null,null,null,null,null,null,null,null,null,"الفصل الدراسى",null,null,"التقييم بالألوان","الفصل الدراسى",null,null,"المجموع الكلى","الدرجة الأصلية","التقييم بالألوان","الفصل الدراسى",null,null,"التقييم بالألوان","الفصل الدراسى",null,null,"المجموع الكلى","الدرجة الأصلية","التقييم بالألوان","الفصل الدراسى",null,null,"التقييم بالألوان","الفصل الدراسى",null,null,"المجموع الكلى","الدرجة الأصلية","التقييم بالألوان","الفصل الدراسى",null,null,"التقييم بالألوان","الفصل الدراسى",null,null,"المجموع الكلى","الدرجة الأصلية","التقييم بالألوان","الفصل الدراسى",null,null,"التقييم بالألوان","الفصل الدراسى",null,null,"المجموع الكلى","الدرجة الأصلية","التقييم بالألوان","الفصل الدراسى",null,null,"التقييم بالألوان","الفصل الدراسى",null,null,"المجموع الكلى","الدرجة الأصلية","التقييم بالألوان","الفصل الدراسى",null,null,"التقييم بالألوان","الفصل الدراسى",null,null,"المجموع الكلى","الدرجة الأصلية","التقييم بالألوان","الفصل الدراسى",null,null,"التقييم بالألوان","الفصل الدراسى",null,null,"المجموع الكلى","الدرجة الأصلية","التقييم بالألوان",null,null,"الفصل الدراسى",null,null,"التقييم بالألوان","الفصل الدراسى",null,null,"المجموع الكلى","الدرجة الأصلية","التقييم بالألوان","الفصل الدراسى",null,null,"التقييم بالألوان","الفصل الدراسى",null,null,"المجموع الكلى","الدرجة الأصلية","التقييم بالألوان","فصل دراسي أول","التقييم بالألوان","فصل دراسي ثانى","المجموع الكلى","الدرجة الأصلية","التقييم بالألوان","فصل دراسي أول","التقييم بالألوان","فصل دراسي ثانى","المجموع الكلى","الدرجة الأصلية","التقييم بالألوان","فصل دراسي أول","التقييم بالألوان","فصل دراسي ثانى","المجموع الكلى","الدرجة الأصلية","التقييم بالألوان","فصل دراسي أول","التقييم بالألوان","فصل دراسي ثانى","المجموع الكلى","الدرجة الأصلية","التقييم بالألوان","فصل دراسي أول","التقييم بالألوان","فصل دراسي ثانى","المجموع الكلى","الدرجة الأصلية","التقييم بالألوان"]
[null,null,null,null,null,null,null,null,null,null,null,"الأول",null,null,null,"الثانى",null,null,null,null,null,"الأول",null,null,null,"الثانى",null,null,null,null,null,"الأول",null,null,null,"الثانى",null,null,null,null,null,"الأول",null,null,null,"الثانى",null,null,null,null,null,"الأول",null,null,null,"الثانى",null,null,null,null,null,"الأول",null,null,null,"الثانى",null,null,null,null,null,"الأول",null,null,null,"الثانى",null,null,null,null,null,"الأول",null,null,null,"الثانى",null,null,null,null,null,null,null,"الأول",null,null,null,"الثانى",null,null,null,null,null,"الأول",null,null,null,"الثانى"]
[null,null,null,null,null,null,null,null,null,null,null,"المهام الأدائية والإختبارات والمواظبة","الإختبار التحريرى","المجموع",null,"المهام الأدائية والإختبارات والمواظبة","الإختبار التحريرى","المجموع",null,null,null,"المهام الأدائية والإختبارات والمواظبة","الإختبار التحريرى","المجموع",null,"المهام الأدائية والإختبارات والمواظبة","الإختبار التحريرى","المجموع",null,null,null,"المهام الأدائية والإختبارات والمواظبة","الإختبار التحريرى","المجموع",null,"المهام الأدائية والإختبارات والمواظبة","الإختبار التحريرى","المجموع",null,null,null,"المهام الأدائية والإختبارات والمواظبة","الإختبار التحريرى","المجموع",null,"المهام الأدائية والإختبارات والمواظبة","الإختبار التحريرى","المجموع",null,null,null,"المهام الأدائية والإختبارات والمواظبة","الإختبار التحريرى","المجموع",null,"المهام الأدائية والإختبارات والمواظبة","الإختبار التحريرى","المجموع",null,null,null,"المهام الأدائية والإختبارات والمواظبة","الإختبار التحريرى","المجموع",null,"المهام الأدائية والإختبارات والمواظبة","الإختبار التحريرى","المجموع",null,null,null,"المهام الأدائية والإختبارات والمواظبة","الإختبار التحريرى","المجموع",null,"المهام الأدائية والإختبارات والمواظبة","الإختبار التحريرى","المجموع",null,null,null,"المهام الأدائية والإختبارات والمواظبة","الإختبار التحريرى","المجموع",null,"المهام الأدائية والإختبارات والمواظبة","الإختبار التحريرى","المجموع",null,null,null,null,null,"المهام الأدائية والإختبارات والمواظبة","الإختبار التحريرى","المجموع",null,"المهام الأدائية والإختبارات والمواظبة","الإختبار التحريرى","المجموع",null,null,null,"المهام الأدائية والإختبارات والمواظبة","الإختبار التحريرى","المجموع",null,"المهام الأدائية والإختبارات والمواظبة","الإختبار التحريرى","المجموع"]
[null,null,null,null,null,null,null,null,null,"نهاية كبرى",null,70,30,{"$f":"M11+L11","v":100},{"$f":"IF(N11>=85,\"يفوق التوقعات\",IF(N11>=65,\"يلبي التوقعات\",IF(N11>=50,\"يلبي التوقعات أحيانا\",IF(N11>=50,\"مقبول\",\"أقل من المتوقع\"))))","v":"يفوق التوقعات"},70,30,{"$f":"Q11+P11","v":100},{"$f":"R11+N11","v":200},{"$f":"S11/2","v":100},{"$f":"IF(T11>=85,\"يفوق التوقعات\",IF(T11>=65,\"يلبي التوقعات\",IF(T11>=50,\"يلبي التوقعات أحيانا\",IF(T11>=50,\"مقبول\",\"أقل من المتوقع\"))))","v":"يفوق التوقعات"},70,30,{"$f":"W11+V11","v":100},{"$f":"IF(X11>=85,\"يفوق التوقعات\",IF(X11>=65,\"يلبي التوقعات\",IF(X11>=50,\"يلبي التوقعات أحيانا\",IF(X11>=50,\"مقبول\",\"أقل من المتوقع\"))))","v":"يفوق التوقعات"},70,30,{"$f":"AA11+Z11","v":100},{"$f":"AB11+X11","v":200},{"$f":"AC11/2","v":100},{"$f":"IF(AD11>=85,\"يفوق التوقعات\",IF(AD11>=65,\"يلبي التوقعات\",IF(AD11>=50,\"يلبي التوقعات أحيانا\",IF(AD11>=50,\"مقبول\",\"أقل من المتوقع\"))))","v":"يفوق التوقعات"},70,30,{"$f":"AG11+AF11","v":100},{"$f":"IF(AH11>=85,\"يفوق التوقعات\",IF(AH11>=65,\"يلبي التوقعات\",IF(AH11>=50,\"يلبي التوقعات أحيانا\",IF(AH11>=50,\"مقبول\",\"أقل من المتوقع\"))))","v":"يفوق التوقعات"},70,30,{"$f":"AK11+AJ11","v":100},{"$f":"AL11+AH11","v":200},{"$f":"AM11/2","v":100},{"$f":"IF(AN11>=85,\"يفوق التوقعات\",IF(AN11>=65,\"يلبي التوقعات\",IF(AN11>=50,\"يلبي التوقعات أحيانا\",IF(AN11>=50,\"مقبول\",\"أقل من المتوقع\"))))","v":"يفوق التوقعات"},70,30,{"$f":"AQ11+AP11","v":100},{"$f":"IF(AR11>=85,\"يفوق التوقعات\",IF(AR11>=65,\"يلبي التوقعات\",IF(AR11>=50,\"يلبي التوقعات أحيانا\",IF(AR11>=50,\"مقبول\",\"أقل من المتوقع\"))))","v":"يفوق التوقعات"},70,30,{"$f":"AU11+AT11","v":100},{"$f":"AV11+AR11","v":200},{"$f":"AW11/2","v":100},{"$f":"IF(AX11>=85,\"يفوق التوقعات\",IF(AX11>=65,\"يلبي التوقعات\",IF(AX11>=50,\"يلبي التوقعات أحيانا\",IF(AX11>=50,\"مقبول\",\"أقل من المتوقع\"))))","v":"يفوق التوقعات"},70,30,{"$f":"BA11+AZ11","v":100},{"$f":"IF(BB11>=85,\"يفوق التوقعات\",IF(BB11>=65,\"يلبي التوقعات\",IF(BB11>=50,\"يلبي التوقعات أحيانا\",IF(BB11>=50,\"مقبول\",\"أقل من المتوقع\"))))","v":"يفوق التوقعات"},70,30,{"$f":"BE11+BD11","v":100},{"$f":"BF11+BB11","v":200},{"$f":"BG11/2","v":100},{"$f":"IF(BH11>=85,\"يفوق التوقعات\",IF(BH11>=65,\"يلبي التوقعات\",IF(BH11>=50,\"يلبي التوقعات أحيانا\",IF(BH11>=50,\"مقبول\",\"أقل من المتوقع\"))))","v":"يفوق التوقعات"},70,30,{"$f":"BK11+BJ11","v":100},{"$f":"IF(BL11>=85,\"يفوق التوقعات\",IF(BL11>=65,\"يلبي التوقعات\",IF(BL11>=50,\"يلبي التوقعات أحيانا\",IF(BL11>=50,\"مقبول\",\"أقل من المتوقع\"))))","v":"يفوق التوقعات"},70,30,{"$f":"BO11+BN11","v":100},{"$f":"BP11+BL11","v":200},{"$f":"BQ11/2","v":100},{"$f":"IF(BR11>=85,\"يفوق التوقعات\",IF(BR11>=65,\"يلبي التوقعات\",IF(BR11>=50,\"يلبي التوقعات أحيانا\",IF(BR11>=50,\"مقبول\",\"أقل من المتوقع\"))))","v":"يفوق التوقعات"},70,30,{"$f":"BU11+BT11","v":100},{"$f":"IF(BV11>=85,\"يفوق التوقعات\",IF(BV11>=65,\"يلبي التوقعات\",IF(BV11>=50,\"يلبي التوقعات أحيانا\",IF(BV11>=50,\"مقبول\",\"أقل من المتوقع\"))))","v":"يفوق التوقعات"},70,30,{"$f":"BY11+BX11","v":100},{"$f":"BZ11+BV11","v":200},{"$f":"CA11/2","v":100},{"$f":"IF(CB11>=85,\"يفوق التوقعات\",IF(CB11>=65,\"يلبي التوقعات\",IF(CB11>=50,\"يلبي التوقعات أحيانا\",IF(CB11>=50,\"مقبول\",\"أقل من المتوقع\"))))","v":"يفوق التوقعات"},70,30,{"$f":"CE11+CD11","v":100},{"$f":"IF(CF11>=85,\"يفوق التوقعات\",IF(CF11>=65,\"يلبي التوقعات\",IF(CF11>=50,\"يلبي التوقعات أحيانا\",IF(CF11>=50,\"مقبول\",\"أقل من المتوقع\"))))","v":"يفوق التوقعات"},70,30,{"$f":"CI11+CH11","v":100},{"$f":"CJ11+CF11","v":200},{"$f":"CK11/2","v":100},{"$f":"IF(CL11>=85,\"يفوق التوقعات\",IF(CL11>=65,\"يلبي التوقعات\",IF(CL11>=50,\"يلبي التوقعات أحيانا\",IF(CL11>=50,\"مقبول\",\"أقل من المتوقع\"))))","v":"يفوق التوقعات"},{"$f":"N11+X11+AH11+AR11+BB11+BL11+BV11+CF11","v":800},{"$f":"IF(CN11>=680,\"يفوق التوقعات\",IF(CN11>=520,\"يلبي التوقعات\",IF(CN11>=400,\"يلبي التوقعات أحيانا\",IF(CN11>=400,\"مقبول\",\"أقل من المتوقع\"))))","v":"يفوق التوقعات"},70,30,{"$f":"CQ11+CP11","v":100},{"$f":"IF(CR11>=85,\"يفوق التوقعات\",IF(CR11>=65,\"يلبي التوقعات\",IF(CR11>=50,\"يلبي التوقعات أحيانا\",IF(CR11>=50,\"مقبول\",\"أقل من المتوقع\"))))","v":"يفوق التوقعات"},70,30,{"$f":"CU11+CT11","v":100},{"$f":"CV11+CR11","v":200},{"$f":"CW11/2","v":100},{"$f":"IF(CX11>=85,\"يفوق التوقعات\",IF(CX11>=65,\"يلبي التوقعات\",IF(CX11>=50,\"يلبي التوقعات أحيانا\",IF(CX11>=50,\"مقبول\",\"أقل من المتوقع\"))))","v":"يفوق التوقعات"},70,30,{"$f":"DA11+CZ11","v":100},{"$f":"IF(DB11>=85,\"يفوق التوقعات\",IF(DB11>=65,\"يلبي التوقعات\",IF(DB11>=50,\"يلبي التوقعات أحيانا\",IF(DB11>=50,\"مقبول\",\"أقل من المتوقع\"))))","v":"يفوق التوقعات"},70,30,{"$f":"DE11+DD11","v":100},{"$f":"DF11+DB11","v":200},{"$f":"DG11/2","v":100},{"$f":"IF(DH11>=85,\"يفوق التوقعات\",IF(DH11>=65,\"يلبي التوقعات\",IF(DH11>=50,\"يلبي التوقعات أحيانا\",IF(DH11>=50,\"مقبول\",\"أقل من المتوقع\"))))","v":"يفوق التوقعات"},100,{"$f":"IF(DJ11>=85,\"يفوق التوقعات\",IF(DJ11>=65,\"يلبي التوقعات\",IF(DJ11>=50,\"يلبي التوقعات أحيانا\",IF(DJ11>=50,\"مقبول\",\"أقل من المتوقع\"))))","v":"يفوق التوقعات"},100,{"$f":"DL11+CX11","v":200},{"$f":"DM11/2","v":100},{"$f":"IF(DN11>=85,\"يفوق التوقعات\",IF(DN11>=65,\"يلبي التوقعات\",IF(DN11>=50,\"يلبي التوقعات أحيانا\",IF(DN11>=50,\"مقبول\",\"أقل من المتوقع\"))))","v":"يفوق التوقعات"},100,{"$f":"IF(DP11>=85,\"يفوق التوقعات\",IF(DP11>=65,\"يلبي التوقعات\",IF(DP11>=50,\"يلبي التوقعات أحيانا\",IF(DP11>=50,\"مقبول\",\"أقل من المتوقع\"))))","v":"يفوق التوقعات"},100,{"$f":"DR11+DN11","v":200},{"$f":"DS11/2","v":100},{"$f":"IF(DT11>=85,\"يفوق التوقعات\",IF(DT11>=65,\"يلبي التوقعات\",IF(DT11>=50,\"يلبي التوقعات أحيانا\",IF(DT11>=50,\"مقبول\",\"أقل من المتوقع\"))))","v":"يفوق التوقعات"},100,{"$f":"IF(DV11>=85,\"يفوق التوقعات\",IF(DV11>=65,\"يلبي التوقعات\",IF(DV11>=50,\"يلبي التوقعات أحيانا\",IF(DV11>=50,\"مقبول\",\"أقل من المتوقع\"))))","v":"يفوق التوقعات"},100,{"$f":"DX11+DT11","v":200},{"$f":"DY11/2","v":100},{"$f":"IF(DZ11>=85,\"يفوق التوقعات\",IF(DZ11>=65,\"يلبي التوقعات\",IF(DZ11>=50,\"يلبي التوقعات أحيانا\",IF(DZ11>=50,\"مقبول\",\"أقل من المتوقع\"))))","v":"يفوق التوقعات"},100,{"$f":"IF(EB11>=85,\"يفوق التوقعات\",IF(EB11>=65,\"يلبي التوقعات\",IF(EB11>=50,\"يلبي التوقعات أحيانا\",IF(EB11>=50,\"مقبول\",\"أقل من المتوقع\"))))","v":"يفوق التوقعات"},100,{"$f":"ED11+DZ11","v":200},{"$f":"EE11/2","v":100},{"$f":"IF(EF11>=85,\"يفوق التوقعات\",IF(EF11>=65,\"يلبي التوقعات\",IF(EF11>=50,\"يلبي التوقعات أحيانا\",IF(EF11>=50,\"مقبول\",\"أقل من المتوقع\"))))","v":"يفوق التوقعات"},100,{"$f":"IF(EH11>=85,\"يفوق التوقعات\",IF(EH11>=65,\"يلبي التوقعات\",IF(EH11>=50,\"يلبي التوقعات أحيانا\",IF(EH11>=50,\"مقبول\",\"أقل من المتوقع\"))))","v":"يفوق التوقعات"},100,{"$f":"EJ11+EF11","v":200},{"$f":"EK11/2","v":100},{"$f":"IF(EL11>=85,\"يفوق التوقعات\",IF(EL11>=65,\"يلبي التوقعات\",IF(EL11>=50,\"يلبي التوقعات أحيانا\",IF(EL11>=50,\"مقبول\",\"أقل من المتوقع\"))))","v":"يفوق التوقعات"}]
[null,null,null,null,null,null,null,null,null,"نهاية صغرى",null,"ـ","ـ",50,"يلبي التوقعات أحيانا","ـ","ـ",50,{"$f":"R12+N12","v":100},{"$f":"S12/2","v":50},"يلبي التوقعات أحيانا","ـ","ـ",50,"يلبي التوقعات أحيانا","ـ","ـ",50,"ـ",50,"يلبي التوقعات أحيانا","ـ","ـ",50,{"$f":"IF(AH12>=85,\"يفوق التوقعات\",IF(AH12>=65,\"يلبي التوقعات\",IF(AH12>=50,\"يلبي التوقعات أحيانا\",IF(AH12>=50,\"مقبول\",\"أقل من المتوقع\"))))","v":"يلبي التوقعات أحيانا"},"ـ","ـ",50,100,50,{"$f":"IF(AN12>=85,\"يفوق التوقعات\",IF(AN12>=65,\"يلبي التوقعات\",IF(AN12>=50,\"يلبي التوقعات أحيانا\",IF(AN12>=50,\"مقبول\",\"أقل من المتوقع\"))))","v":"يلبي التوقعات أحيانا"},"ـ","ـ",50,{"$f":"IF(AR12>=85,\"يفوق التوقعات\",IF(AR12>=65,\"يلبي التوقعات\",IF(AR12>=50,\"يلبي التوقعات أحيانا\",IF(AR12>=50,\"مقبول\",\"أقل من المتوقع\"))))","v":"يلبي التوقعات أحيانا"},"ـ","ـ",50,100,50,{"$f":"IF(AX12>=85,\"يفوق التوقعات\",IF(AX12>=65,\"يلبي التوقعات\",IF(AX12>=50,\"يلبي التوقعات أحيانا\",IF(AX12>=50,\"مقبول\",\"أقل من المتوقع\"))))","v":"يلبي التوقعات أحيانا"},"ـ","ـ",50,{"$f":"IF(BB12>=85,\"يفوق التوقعات\",IF(BB12>=65,\"يلبي التوقعات\",IF(BB12>=50,\"يلبي التوقعات أحيانا\",IF(BB12>=50,\"مقبول\",\"أقل من المتوقع\"))))","v":"يلبي التوقعات أحيانا"},"ـ","ـ",50,100,50,{"$f":"IF(BH12>=85,\"يفوق التوقعات\",IF(BH12>=65,\"يلبي التوقعات\",IF(BH12>=50,\"يلبي التوقعات أحيانا\",IF(BH12>=50,\"مقبول\",\"أقل من المتوقع\"))))","v":"يلبي التوقعات أحيانا"},"ـ","ـ",50,{"$f":"IF(BL12>=85,\"يفوق التوقعات\",IF(BL12>=65,\"يلبي التوقعات\",IF(BL12>=50,\"يلبي التوقعات أحيانا\",IF(BL12>=50,\"مقبول\",\"أقل من المتوقع\"))))","v":"يلبي التوقعات أحيانا"},"ـ","ـ",50,100,50,{"$f":"IF(BR12>=85,\"يفوق التوقعات\",IF(BR12>=65,\"يلبي التوقعات\",IF(BR12>=50,\"يلبي التوقعات أحيانا\",IF(BR12>=50,\"مقبول\",\"أقل من المتوقع\"))))","v":"يلبي التوقعات أحيانا"},"ـ","ـ",50,{"$f":"IF(BV12>=85,\"يفوق التوقعات\",IF(BV12>=65,\"يلبي التوقعات\",IF(BV12>=50,\"يلبي التوقعات أحيانا\",IF(BV12>=50,\"مقبول\",\"أقل من المتوقع\"))))","v":"يلبي التوقعات أحيانا"},"ـ","ـ",50,100,50,{"$f":"IF(CB12>=85,\"يفوق التوقعات\",IF(CB12>=65,\"يلبي التوقعات\",IF(CB12>=50,\"يلبي التوقعات أحيانا\",IF(CB12>=50,\"مقبول\",\"أقل من المتوقع\"))))","v":"يلبي التوقعات أحيانا"},"ـ","ـ",50,{"$f":"IF(CF12>=85,\"يفوق التوقعات\",IF(CF12>=65,\"يلبي التوقعات\",IF(CF12>=50,\"يلبي التوقعات أحيانا\",IF(CF12>=50,\"مقبول\",\"أقل من المتوقع\"))))","v":"يلبي التوقعات أحيانا"},"ـ","ـ",50,100,50,{"$f":"IF(CL12>=85,\"يفوق التوقعات\",IF(CL12>=65,\"يلبي التوقعات\",IF(CL12>=50,\"يلبي التوقعات أحيانا\",IF(CL12>=50,\"مقبول\",\"أقل من المتوقع\"))))","v":"يلبي التوقعات أحيانا"},{"$f":"N12+X12+AH12+AR12+BB12+BL12+BV12+CF12","v":400},{"$f":"IF(CN12>=680,\"يفوق التوقعات\",IF(CN12>=520,\"يلبي التوقعات\",IF(CN12>=400,\"يلبي التوقعات أحيانا\",IF(CN12>=400,\"مقبول\",\"أقل من المتوقع\"))))","v":"يلبي التوقعات أحيانا"},"ـ","ـ",50,{"$f":"IF(CR12>=85,\"يفوق التوقعات\",IF(CR12>=65,\"يلبي التوقعات\",IF(CR12>=50,\"يلبي التوقعات أحيانا\",IF(CR12>=50,\"مقبول\",\"أقل من المتوقع\"))))","v":"يلبي التوقعات أحيانا"},"ـ","ـ",50,100,50,{"$f":"IF(CX12>=85,\"يفوق التوقعات\",IF(CX12>=65,\"يلبي التوقعات\",IF(CX12>=50,\"يلبي التوقعات أحيانا\",IF(CX12>=50,\"مقبول\",\"أقل من المتوقع\"))))","v":"يلبي التوقعات أحيانا"},"ـ","ـ",50,{"$f":"IF(DB12>=85,\"يفوق التوقعات\",IF(DB12>=65,\"يلبي التوقعات\",IF(DB12>=50,\"يلبي التوقعات أحيانا\",IF(DB12>=50,\"مقبول\",\"أقل من المتوقع\"))))","v":"يلبي التوقعات أحيانا"},"ـ","ـ",50,100,50,{"$f":"IF(DH12>=85,\"يفوق التوقعات\",IF(DH12>=65,\"يلبي التوقعات\",IF(DH12>=50,\"يلبي التوقعات أحيانا\",IF(DH12>=50,\"مقبول\",\"أقل من المتوقع\"))))","v":"يلبي التوقعات أحيانا"},50,{"$f":"IF(DJ12>=85,\"يفوق التوقعات\",IF(DJ12>=65,\"يلبي التوقعات\",IF(DJ12>=50,\"يلبي التوقعات أحيانا\",IF(DJ12>=50,\"مقبول\",\"أقل من المتوقع\"))))","v":"يلبي التوقعات أحيانا"},50,{"$f":"DL12+CX12","v":100},{"$f":"DM12/2","v":50},{"$f":"IF(DN12>=85,\"يفوق التوقعات\",IF(DN12>=65,\"يلبي التوقعات\",IF(DN12>=50,\"يلبي التوقعات أحيانا\",IF(DN12>=50,\"مقبول\",\"أقل من المتوقع\"))))","v":"يلبي التوقعات أحيانا"},50,{"$f":"IF(DP12>=85,\"يفوق التوقعات\",IF(DP12>=65,\"يلبي التوقعات\",IF(DP12>=50,\"يلبي التوقعات أحيانا\",IF(DP12>=50,\"مقبول\",\"أقل من المتوقع\"))))","v":"يلبي التوقعات أحيانا"},50,{"$f":"DR12+DN12","v":100},{"$f":"DS12/2","v":50},{"$f":"IF(DT12>=85,\"يفوق التوقعات\",IF(DT12>=65,\"يلبي التوقعات\",IF(DT12>=50,\"يلبي التوقعات أحيانا\",IF(DT12>=50,\"مقبول\",\"أقل من المتوقع\"))))","v":"يلبي التوقعات أحيانا"},50,{"$f":"IF(DV12>=85,\"يفوق التوقعات\",IF(DV12>=65,\"يلبي التوقعات\",IF(DV12>=50,\"يلبي التوقعات أحيانا\",IF(DV12>=50,\"مقبول\",\"أقل من المتوقع\"))))","v":"يلبي التوقعات أحيانا"},50,{"$f":"DX12+DT12","v":100},{"$f":"DY12/2","v":50},{"$f":"IF(DZ12>=85,\"يفوق التوقعات\",IF(DZ12>=65,\"يلبي التوقعات\",IF(DZ12>=50,\"يلبي التوقعات أحيانا\",IF(DZ12>=50,\"مقبول\",\"أقل من المتوقع\"))))","v":"يلبي التوقعات أحيانا"},50,{"$f":"IF(EB12>=85,\"يفوق التوقعات\",IF(EB12>=65,\"يلبي التوقعات\",IF(EB12>=50,\"يلبي التوقعات أحيانا\",IF(EB12>=50,\"مقبول\",\"أقل من المتوقع\"))))","v":"يلبي التوقعات أحيانا"},50,{"$f":"ED12+DZ12","v":100},{"$f":"EE12/2","v":50},{"$f":"IF(EF12>=85,\"يفوق التوقعات\",IF(EF12>=65,\"يلبي التوقعات\",IF(EF12>=50,\"يلبي التوقعات أحيانا\",IF(EF12>=50,\"مقبول\",\"أقل من المتوقع\"))))","v":"يلبي التوقعات أحيانا"},50,{"$f":"IF(EH12>=85,\"يفوق التوقعات\",IF(EH12>=65,\"يلبي التوقعات\",IF(EH12>=50,\"يلبي التوقعات أحيانا\",IF(EH12>=50,\"مقبول\",\"أقل من المتوقع\"))))","v":"يلبي التوقعات أحيانا"},50,{"$f":"EJ12+EF12","v":100},{"$f":"EK12/2","v":50},{"$f":"IF(EL12>=85,\"يفوق التوقعات\",IF(EL12>=65,\"يلبي التوقعات\",IF(EL12>=50,\"يلبي التوقعات أحيانا\",IF(EL12>=50,\"مقبول\",\"أقل من المتوقع\"))))","v":"يلبي التوقعات أحيانا"}]
[null,464,null,null,null,189,"أحمد جمال محمد عبد ربه ",699,null,null,null,null,null,100,"يفوق التوقعات",null,null,null,null,null,"أقل من المتوقع",60,20,{"$f":"SUM(W13,V13)","v":80},"يلبي التوقعات",null,null,null,null,null,"أقل من المتوقع",50,10,{"$f":"SUM(AG13,AF13)","v":60},"يلبي التوقعات أحيانا",null,null,null,null,null,null,70,30,{"$f":"SUM(AQ13,AP13)","v":100},{"$f":"IF(AR13>=85,\"يفوق التوقعات\",IF(AR13>=65,\"يلبي التوقعات\",IF(AR13>=50,\"يلبي التوقعات أحيانا\",IF(AR13>=50,\"مقبول\",\"أقل من المتوقع\"))))","v":"يفوق التوقعات"},null,null,null,null,null,null,20,30,{"$f":"SUM(BA13,AZ13)","v":50},{"$f":"IF(BB13>=85,\"يفوق التوقعات\",IF(BB13>=65,\"يلبي التوقعات\",IF(BB13>=50,\"يلبي التوقعات أحيانا\",IF(BB13>=50,\"مقبول\",\"أقل من المتوقع\"))))","v":"يلبي التوقعات أحيانا"},null,null,null,null,null,null,70,null,{"$f":"SUM(BK13,BJ13)","v":70},{"$f":"IF(BL13>=85,\"يفوق التوقعات\",IF(BL13>=65,\"يلبي التوقعات\",IF(BL13>=50,\"يلبي التوقعات أحيانا\",IF(BL13>=50,\"مقبول\",\"أقل من المتوقع\"))))","v":"يلبي التوقعات"},null,null,null,null,null,null,30,30,{"$f":"SUM(BU13,BT13)","v":60},{"$f":"IF(BV13>=85,\"يفوق التوقعات\",IF(BV13>=65,\"يلبي التوقعات\",IF(BV13>=50,\"يلبي التوقعات أحيانا\",IF(BV13>=50,\"مقبول\",\"أقل من المتوقع\"))))","v":"يلبي التوقعات أحيانا"},null,null,null,null,null,null,70,30,{"$f":"SUM(CE13,CD13)","v":100},{"$f":"IF(CF13>=85,\"يفوق التوقعات\",IF(CF13>=65,\"يلبي التوقعات\",IF(CF13>=50,\"يلبي التوقعات أحيانا\",IF(CF13>=50,\"مقبول\",\"أقل من المتوقع\"))))","v":"يفوق التوقعات"},null,null,null,null,null,null,{"$f":"N13+X13+AH13+AR13+BB13+BL13+BV13+CF13","v":620},"يلبي التوقعات",null,null,{"$f":"SUM(CQ13,CP13)","v":0},{"$f":"IF(CR13>=85,\"يفوق التوقعات\",IF(CR13>=65,\"يلبي التوقعات\",IF(CR13>=50,\"يلبي التوقعات أحيانا\",IF(CR13>=50,\"مقبول\",\"أقل من المتوقع\"))))","v":"أقل من المتوقع"},null,null,null,null,null,null,null,null,{"$f":"SUM(DA13,DZ13)","v":0},{"$f":"IF(DB13>=85,\"يفوق التوقعات\",IF(DB13>=65,\"يلبي التوقعات\",IF(DB13>=50,\"يلبي التوقعات أحيانا\",IF(DB13>=50,\"مقبول\",\"أقل من المتوقع\"))))","v":"أقل من المتوقع"},null,null,null,null,null,null,15,{"$f":"IF(DJ13>=85,\"يفوق التوقعات\",IF(DJ13>=65,\"يلبي التوقعات\",IF(DJ13>=50,\"يلبي التوقعات أحيانا\",IF(DJ13>=50,\"مقبول\",\"أقل من المتوقع\"))))","v":"أقل من المتوقع"},null,null,null,null,20,{"$f":"IF(DP13>=85,\"يفوق التوقعات\",IF(DP13>=65,\"يلبي التوقعات\",IF(DP13>=50,\"يلبي التوقعات أحيانا\",IF(DP13>=50,\"مقبول\",\"أقل من المتوقع\"))))","v":"أقل من المتوقع"},null,null,null,null,30,{"$f":"IF(DV13>=85,\"يفوق التوقعات\",IF(DV13>=65,\"يلبي التوقعات\",IF(DV13>=50,\"يلبي التوقعات أحيانا\",IF(DV13>=50,\"مقبول\",\"أقل من المتوقع\"))))","v":"أقل من المتوقع"},null,null,null,null,40,{"$f":"IF(EB13>=85,\"يفوق التوقعات\",IF(EB13>=65,\"يلبي التوقعات\",IF(EB13>=50,\"يلبي التوقعات أحيانا\",IF(EB13>=50,\"مقبول\",\"أقل من المتوقع\"))))","v":"أقل من المتوقع"},null,null,null,null,100,{"$f":"IF(EH13>=85,\"يفوق التوقعات\",IF(EH13>=65,\"يلبي التوقعات\",IF(EH13>=50,\"يلبي التوقعات أحيانا\",IF(EH13>=50,\"مقبول\",\"أقل من المتوقع\"))))","v":"يفوق التوقعات"},null,null,null,null,{"$f":"RANK(CN13,$CN$13:$CN$44)","v":1}]
[null,465,null,null,null,190,"ادم شريف الراعي رمضان",700,null,null,null,null,null,{"$f":"SUM(M14,L14)","v":0},"أقل من المتوقع",null,null,null,null,null,"أقل من المتوقع",null,null,{"$f":"SUM(W14,V14)","v":0},"أقل من المتوقع",null,null,null,null,null,"أقل من المتوقع",null,null,{"$f":"SUM(AG14,AF14)","v":0},"أقل من المتوقع",null,null,null,null,null,null,null,null,{"$f":"SUM(AQ14,AP14)","v":0},"أقل من المتوقع",null,null,null,null,null,null,null,null,{"$f":"SUM(BA14,AZ14)","v":0},"أقل من المتوقع",null,null,null,null,null,null,null,null,{"$f":"SUM(BK14,BJ14)","v":0},{"$f":"IF(BL14>=85,\"يفوق التوقعات\",IF(BL14>=65,\"يلبي التوقعات\",IF(BL14>=50,\"يلبي التوقعات أحيانا\",IF(BL14>=50,\"مقبول\",\"أقل من المتوقع\"))))","v":"أقل من المتوقع"},null,null,null,null,null,null,null,null,{"$f":"SUM(BU14,BT14)","v":0},"أقل من المتوقع",null,null,null,null,null,null,null,null,{"$f":"SUM(CE14,CD14)","v":0},"أقل من المتوقع",null,null,null,null,null,null,{"$f":"N14+X14+AH14+AR14+BB14+BL14+BV14+CF14","v":0},"أقل من المتوقع",null,null,{"$f":"SUM(CQ14,CP14)","v":0},"أقل من المتوقع",null,null,null,null,null,null,null,null,{"$f":"SUM(DA14,DZ14)","v":0},{"$f":"IF(DB14>=85,\"يفوق التوقعات\",IF(DB14>=65,\"يلبي التوقعات\",IF(DB14>=50,\"يلبي التوقعات أحيانا\",IF(DB14>=50,\"مقبول\",\"أقل من المتوقع\"))))","v":"أقل من المتوقع"},null,null,null,null,null,null,100,{"$f":"IF(DJ14>=85,\"يفوق التوقعات\",IF(DJ14>=65,\"يلبي التوقعات\",IF(DJ14>=50,\"يلبي التوقعات أحيانا\",IF(DJ14>=50,\"مقبول\",\"أقل من المتوقع\"))))","v":"يفوق التوقعات"},null,null,null,null,100,{"$f":"IF(DP14>=85,\"يفوق التوقعات\",IF(DP14>=65,\"يلبي التوقعات\",IF(DP14>=50,\"يلبي التوقعات أحيانا\",IF(DP14>=50,\"مقبول\",\"أقل من المتوقع\"))))","v":"يفوق التوقعات"},null,null,null,null,100,{"$f":"IF(DV14>=85,\"يفوق التوقعات\",IF(DV14>=65,\"يلبي التوقعات\",IF(DV14>=50,\"يلبي التوقعات أحيانا\",IF(DV14>=50,\"مقبول\",\"أقل من المتوقع\"))))","v":"يفوق التوقعات"},null,null,null,null,100,{"$f":"IF(EB14>=85,\"يفوق التوقعات\",IF(EB14>=65,\"يلبي التوقعات\",IF(EB14>=50,\"يلبي التوقعات أحيانا\",IF(EB14>=50,\"مقبول\",\"أقل من المتوقع\"))))","v":"يفوق التوقعات"},null,null,null,null,100,{"$f":"IF(EH14>=85,\"يفوق التوقعات\",IF(EH14>=65,\"يلبي التوقعات\",IF(EH14>=50,\"يلبي التوقعات أحيانا\",IF(EH14>=50,\"مقبول\",\"أقل من المتوقع\"))))","v":"يفوق التوقعات"},null,null,null,null,{"$f":"RANK(CN14,$CN$13:$CN$44)","v":2}]
[null,466,null,null,null,191,"زياد حسن صديق مصطفي صديق",701,null,null,null,null,null,0,"أقل من المتوقع",null,null,null,null,null,"أقل من المتوقع",null,null,0,"أقل من المتوقع",null,null,null,null,null,"أقل من المتوقع",null,null,0,"أقل من المتوقع",null,null,null,null,null,null,null,null,0,"أقل من المتوقع",null,null,null,null,null,null,null,null,0,"أقل من المتوقع",null,null,null,null,null,null,null,null,0,"أقل من المتوقع",null,null,null,null,null,null,null,null,0,"أقل من المتوقع",null,null,null,null,null,null,null,null,0,"أقل من المتوقع",null,null,null,null,null,null,0,"أقل من المتوقع",null,null,0,"أقل من المتوقع",null,null,null,null,null,null,null,null,0,"أقل من المتوقع",null,null,null,null,null,null,100,"يفوق التوقعات",null,null,null,null,100,"يفوق التوقعات",null,null,null,null,100,"يفوق التوقعات",null,null,null,null,100,"يفوق التوقعات",null,null,null,null,100,"يفوق التوقعات",null,null,null,null,2]
[null,467,null,null,null,192,"سامي تامر سامي سوريان",702,null,null,null,null,null,0,"أقل من المتوقع",null,null,null,null,null,"أقل من المتوقع",null,null,0,"أقل من المتوقع",null,null,null,null,null,"أقل من المتوقع",null,null,0,"أقل من المتوقع",null,null,null,null,null,null,null,null,0,"أقل من المتوقع",null,null,null,null,null,null,null,null,0,"أقل من المتوقع",null,null,null,null,null,null,null,null,0,"أقل من المتوقع",null,null,null,null,null,null,null,null,0,"أقل من المتوقع",null,null,null,null,null,null,null,null,0,"أقل من المتوقع",null,null,null,null,null,null,0,"أقل من المتوقع",null,null,0,"أقل من المتوقع",null,null,null,null,null,null,null,null,0,"أقل من المتوقع",null,null,null,null,null,null,100,"يفوق التوقعات",null,null,null,null,100,"يفوق التوقعات",null,null,null,null,100,"يفوق التوقعات",null,null,null,null,100,"يفوق التوقعات",null,null,null,null,100,"يفوق التوقعات",null,null,null,null,2]
[null,468,null,null,null,193,"سيف عمرو حسن محمد علي فوده",703,null,null,null,null,null,0,"أقل من المتوقع",null,null,null,null,null,"أقل من المتوقع",null,null,0,"أقل من المتوقع",null,null,null,null,null,"أقل من المتوقع",null,null,0,"أقل من المتوقع",null,null,null,null,null,null,null,null,0,"أقل من المتوقع",null,null,null,null,null,null,null,null,0,"أقل من المتوقع",null,null,null,null,null,null,null,null,0,"أقل من المتوقع",null,null,null,null,null,null,null,null,0,"أقل من المتوقع",null,null,null,null,null,null,null,null,0,"أقل من المتوقع",null,null,null,null,null,null,0,"أقل من المتوقع",null,null,0,"أقل من المتوقع",null,null,null,null,null,null,null,null,0,"أقل من المتوقع",null,null,null,null,null,null,100,"يفوق التوقعات",null,null,null,null,100,"يفوق التوقعات",null,null,null,null,100,"يفوق التوقعات",null,null,null,null,100,"يفوق التوقعات",null,null,null,null,100,"يفوق التوقعات",null,null,null,null,2]
[null,469,null,null,null,194,"عاصم ياسر محمود محمد",704,null,null,null,null,null,0,"أقل من المتوقع",null,null,null,null,null,"أقل من المتوقع",null,null,0,"أقل من المتوقع",null,null,null,null,null,"أقل من المتوقع",null,null,0,"أقل من المتوقع",null,null,null,null,null,null,null,null,0,"أقل من المتوقع",null,null,null,null,null,null,null,null,0,"أقل من المتوقع",null,null,null,null,null,null,null,null,0,"أقل من المتوقع",null,null,null,null,null,null,null,null,0,"أقل من المتوقع",null,null,null,null,null,null,null,null,0,"أقل من المتوقع",null,null,null,null,null,null,0,"أقل من المتوقع",null,null,0,"أقل من المتوقع",null,null,null,null,null,null,null,null,{"$f":"SUM(DA18,DZ18)","v":0},"أقل من المتوقع",null,null,null,null,null,null,100,"يفوق التوقعات",null,null,null,null,100,"يفوق التوقعات",null,null,null,null,100,"يفوق التوقعات",null,null,null,null,100,"يفوق التوقعات",null,null,null,null,100,"يفوق التوقعات",null,null,null,null,2]
[null,470,null,null,null,195,"عبد الرحمن لؤي محمود السيد محمد ",705,null,null,null,null,null,0,"أقل من المتوقع",null,null,null,null,null,"أقل من المتوقع",null,null,0,"أقل من المتوقع",null,null,null,null,null,"أقل من المتوقع",null,null,0,"أقل من المتوقع",null,null,null,null,null,null,null,null,0,"أقل من المتوقع",null,null,null,null,null,null,null,null,0,"أقل من المتوقع",null,null,null,null,null,null,null,null,0,"أقل من المتوقع",null,null,null,null,null,null,null,null,0,"أقل من المتوقع",null,null,null,null,null,null,null,null,0,"أقل من المتوقع",null,null,null,null,null,null,0,"أقل من المتوقع",null,null,0,"أقل من المتوقع",null,null,null,null,null,null,null,null,0,"أقل من المتوقع",null,null,null,null,null,null,100,"يفوق التوقعات",null,null,null,null,100,"يفوق التوقعات",null,null,null,null,100,"يفوق التوقعات",null,null,null,null,100,"يفوق التوقعات",null,null,null,null,100,"يفوق التوقعات",null,null,null,null,2]
[null,null,null,null,null,196,"عبدالله محمد عبد المجيد علي احمد",706,null,null,null,null,null,0,"أقل من المتوقع",null,null,null,null,null,null,null,null,0,"أقل من المتوقع",null,null,null,null,null,null,null,null,0,"أقل من المتوقع",null,null,null,null,null,null,null,null,0,"أقل من المتوقع",null,null,null,null,null,null,null,null,0,"أقل من المتوقع",null,null,null,null,null,null,null,null,0,"أقل من المتوقع",null,null,null,null,null,null,null,null,0,"أقل من المتوقع",null,null,null,null,null,null,null,null,0,"أقل من المتوقع",null,null,null,null,null,null,0,"أقل من المتوقع",null,null,0,"أقل من المتوقع",null,null,null,null,null,null,null,null,0,"أقل من المتوقع",null,null,null,null,null,null,100,"يفوق التوقعات",null,null,null,null,100,"يفوق التوقعات",null,null,null,null,100,"يفوق التوقعات",null,null,null,null,100,"يفوق التوقعات",null,null,null,null,100,"يفوق التوقعات",null,null,null,null,2]
[null,null,null,null,null,197,"عمر شريف احمد محمد محمد",707,null,null,null,null,null,0,"أقل من المتوقع",null,null,null,null,null,null,null,null,0,"أقل من المتوقع",null,null,null,null,null,null,null,null,0,"أقل من المتوقع",null,null,null,null,null,null,null,null,0,"أقل من المتوقع",null,null,null,null,null,null,null,null,0,"أقل من المتوقع",null,null,null,null,null,null,null,null,0,"أقل من المتوقع",null,null,null,null,null,null,null,null,0,"أقل من المتوقع",null,null,null,null,null,null,null,null,0,"أقل من المتوقع",null,null,null,null,null,null,0,"أقل من المتوقع",null,null,0,"أقل من المتوقع",null,null,null,null,null,null,null,null,0,"أقل من المتوقع",null,null,null,null,null,null,100,"يفوق التوقعات",null,null,null,null,100,"يفوق التوقعات",null,null,null,null,100,"يفوق التوقعات",null,null,null,null,100,"يفوق التوقعات",null,null,null,null,100,"يفوق التوقعات",null,null,null,null,2]
[null,null,null,null,null,198,"عمر شريف الراعي رمضان",708,null,null,null,null,null,0,"أقل من المتوقع",null,null,null,null,null,null,null,null,0,"أقل من المتوقع",null,null,null,null,null,null,null,null,0,"أقل من المتوقع",null,null,null,null,null,null,null,null,0,"أقل من المتوقع",null,null,null,null,null,null,null,null,0,"أقل من المتوقع",null,null,null,null,null,null,null,null,0,"أقل من المتوقع",null,null,null,null,null,null,null,null,0,"أقل من المتوقع",null,null,null,null,null,null,null,null,0,"أقل من المتوقع",null,null,null,null,null,null,0,"أقل من المتوقع",null,null,0,"أقل من المتوقع",null,null,null,null,null,null,null,null,0,"أقل من المتوقع",null,null,null,null,null,null,100,"يفوق التوقعات",null,null,null,null,100,"يفوق التوقعات",null,null,null,null,100,"يفوق التوقعات",null,null,null,null,100,"يفوق التوقعات",null,null,null,null,100,"يفوق التوقعات",null,null,null,null,2]
[null,null,null,null,null,199,"مازن تامر رضا حسن على",709,null,null,null,null,null,0,"أقل من المتوقع",null,null,null,null,null,null,null,null,0,"أقل من المتوقع",null,null,null,null,null,null,null,null,0,"أقل من المتوقع",null,null,null,null,null,null,null,null,0,"أقل من المتوقع",null,null,null,null,null,null,null,null,0,"أقل من المتوقع",null,null,null,null,null,null,null,null,0,"أقل من المتوقع",null,null,null,null,null,null,null,null,0,"أقل من المتوقع",null,null,null,null,null,null,null,null,0,"أقل من المتوقع",null,null,null,null,null,null,0,"أقل من المتوقع",null,null,0,"أقل من المتوقع",null,null,null,null,null,null,null,null,0,"أقل من المتوقع",null,null,null,null,null,null,100,"يفوق التوقعات",null,null,null,null,100,"يفوق التوقعات",null,null,null,null,100,"يفوق التوقعات",null,null,null,null,100,"يفوق التوقعات",null,null,null,null,100,"يفوق التوقعات",null,null,null,null,2]
[null,null,null,null,null,200,"مالك اسامه عبدالله عبيد محمد",710,null,null,null,null,null,0,"أقل من المتوقع",null,null,null,null,null,null,null,null,0,"أقل من المتوقع",null,null,null,null,null,null,null,null,0,"أقل من المتوقع",null,null,null,null,null,null,null,null,0,"أقل من المتوقع",null,null,null,null,null,null,null,null,0,"أقل من المتوقع",null,null,null,null,null,null,null,null,0,"أقل من المتوقع",null,null,null,null,null,null,null,null,0,"أقل من المتوقع",null,null,null,null,null,null,null,null,0,"أقل من المتوقع",null,null,null,null,null,null,0,"أقل من المتوقع",null,null,0,"أقل من المتوقع",null,null,null,null,null,null,null,null,0,"أقل من المتوقع",null,null,null,null,null,null,100,"يفوق التوقعات",null,null,null,null,100,"يفوق التوقعات",null,null,null,null,100,"يفوق التوقعات",null,null,null,null,100,"يفوق التوقعات",null,null,null,null,100,"يفوق التوقعات",null,null,null,null,2]
[null,null,null,null,null,201,"مالك محمد محمود منصور",711,null,null,null,null,null,0,"أقل من المتوقع",null,null,null,null,null,null,null,null,0,"أقل من المتوقع",null,null,null,null,null,null,null,null,0,"أقل من المتوقع",null,null,null,null,null,null,null,null,0,"أقل من المتوقع",null,null,null,null,null,null,null,null,0,"أقل من المتوقع",null,null,null,null,null,null,null,null,0,"أقل من المتوقع",null,null,null,null,null,null,null,null,0,"أقل من المتوقع",null,null,null,null,null,null,null,null,0,"أقل من المتوقع",null,null,null,null,null,null,0,"أقل من المتوقع",null,null,0,"أقل من المتوقع",null,null,null,null,null,null,null,null,0,"أقل من المتوقع",null,null,null,null,null,null,100,"يفوق التوقعات",null,null,null,null,100,"يفوق التوقعات",null,null,null,null,100,"يفوق التوقعات",null,null,null,null,100,"يفوق التوقعات",null,null,null,null,100,"يفوق التوقعات",null,null,null,null,2]
[null,null,null,null,null,202,"محمد اسامة احمد محمد",712,null,null,null,null,null,0,"أقل من المتوقع",null,null,null,null,null,null,null,null,0,"أقل من المتوقع",null,null,null,null,null,null,null,null,0,"أقل من المتوقع",null,null,null,null,null,null,null,null,0,"أقل من المتوقع",null,null,null,null,null,null,null,null,0,"أقل من المتوقع",null,null,null,null,null,null,null,null,0,"أقل من المتوقع",null,null,null,null,null,null,null,null,0,"أقل من المتوقع",null,null,null,null,null,null,null,null,0,"أقل من المتوقع",null,null,null,null,null,null,0,"أقل من المتوقع",null,null,0,"أقل من المتوقع",null,null,null,null,null,null,null,null,0,"أقل من المتوقع",null,null,null,null,null,null,100,"يفوق التوقعات",null,null,null,null,100,"يفوق التوقعات",null,null,null,null,100,"يفوق التوقعات",null,null,null,null,100,"يفوق التوقعات",null,null,null,null,100,"يفوق التوقعات",null,null,null,null,2]
[null,null,null,null,null,203,"محمد خالد مصطفي احمد خميس",713,null,null,null,null,null,0,"أقل من المتوقع",null,null,null,null,null,null,null,null,0,"أقل من المتوقع",null,null,null,null,null,null,null,null,0,"أقل من المتوقع",null,null,null,null,null,null,null,null,0,"أقل من المتوقع",null,null,null,null,null,null,null,null,0,"أقل من المتوقع",null,null,null,null,null,null,null,null,0,"أقل من المتوقع",null,null,null,null,null,null,null,null,0,"أقل من المتوقع",null,null,null,null,null,null,null,null,0,"أقل من المتوقع",null,null,null,null,null,null,0,"أقل من المتوقع",null,null,0,"أقل من المتوقع",null,null,null,null,null,null,null,null,0,"أقل من المتوقع",null,null,null,null,null,null,100,"يفوق التوقعات",null,null,null,null,100,"يفوق التوقعات",null,null,null,null,100,"يفوق التوقعات",null,null,null,null,100,"يفوق التوقعات",null,null,null,null,100,"يفوق التوقعات",null,null,null,null,2]
[null,null,null,null,null,204,"مروان خالد مصطفي احمد خمبس",714,null,null,null,null,null,0,"أقل من المتوقع",null,null,null,null,null,null,null,null,0,"أقل من المتوقع",null,null,null,null,null,null,null,null,0,"أقل من المتوقع",null,null,null,null,null,null,null,null,0,"أقل من المتوقع",null,null,null,null,null,null,null,null,0,"أقل من المتوقع",null,null,null,null,null,null,null,null,0,"أقل من المتوقع",null,null,null,null,null,null,null,null,0,"أقل من المتوقع",null,null,null,null,null,null,null,null,0,"أقل من المتوقع",null,null,null,null,null,null,0,"أقل من المتوقع",null,null,0,"أقل من المتوقع",null,null,null,null,null,null,null,null,0,"أقل من المتوقع",null,null,null,null,null,null,100,"يفوق التوقعات",null,null,null,null,100,"يفوق التوقعات",null,null,null,null,100,"يفوق التوقعات",null,null,null,null,100,"يفوق التوقعات",null,null,null,null,100,"يفوق التوقعات",null,null,null,null,2]
[null,null,null,null,null,205,"مهد احمد محروس ورد اني هديه",715,null,null,null,null,null,0,"أقل من المتوقع",null,null,null,null,null,null,null,null,0,"أقل من المتوقع",null,null,null,null,null,null,null,null,0,"أقل من المتوقع",null,null,null,null,null,null,null,null,0,"أقل من المتوقع",null,null,null,null,null,null,null,null,0,"أقل من المتوقع",null,null,null,null,null,null,null,null,0,"أقل من المتوقع",null,null,null,null,null,null,null,null,0,"أقل من المتوقع",null,null,null,null,null,null,null,null,0,"أقل من المتوقع",null,null,null,null,null,null,0,"أقل من المتوقع",null,null,0,"أقل من المتوقع",null,null,null,null,null,null,null,null,0,"أقل من المتوقع",null,null,null,null,null,null,100,"يفوق التوقعات",null,null,null,null,100,"يفوق التوقعات",null,null,null,null,100,"يفوق التوقعات",null,null,null,null,100,"يفوق التوقعات",null,null,null,null,100,"يفوق التوقعات",null,null,null,null,2]
[null,null,null,null,null,206,"مهند احمد راشد قاسم راشد",716,null,null,null,null,null,0,"أقل من المتوقع",null,null,null,null,null,null,null,null,0,"أقل من المتوقع",null,null,null,null,null,null,null,null,0,"أقل من المتوقع",null,null,null,null,null,null,null,null,0,"أقل من المتوقع",null,null,null,null,null,null,null,null,0,"أقل من المتوقع",null,null,null,null,null,null,null,null,0,"أقل من المتوقع",null,null,null,null,null,null,null,null,0,"أقل من المتوقع",null,null,null,null,null,null,null,null,0,"أقل من المتوقع",null,null,null,null,null,null,0,"أقل من المتوقع",null,null,0,"أقل من المتوقع",null,null,null,null,null,null,null,null,0,"أقل من المتوقع",null,null,null,null,null,null,100,"يفوق التوقعات",null,null,null,null,100,"يفوق التوقعات",null,null,null,null,100,"يفوق التوقعات",null,null,null,null,100,"يفوق التوقعات",null,null,null,null,100,"يفوق التوقعات",null,null,null,null,2]
[null,null,null,null,null,207,"ياسين احمد محمد محمد محمد ",717,null,null,null,null,null,0,"أقل من المتوقع",null,null,null,null,null,null,null,null,0,"أقل من المتوقع",null,null,null,null,null,null,null,null,0,"أقل من المتوقع",null,null,null,null,null,null,null,null,0,"أقل من المتوقع",null,null,null,null,null,null,null,null,0,"أقل من المتوقع",null,null,null,null,null,null,null,null,0,"أقل من المتوقع",null,null,null,null,null,null,null,null,0,"أقل من المتوقع",null,null,null,null,null,null,null,null,0,"أقل من المتوقع",null,null,null,null,null,null,0,"أقل من المتوقع",null,null,0,"أقل من المتوقع",null,null,null,null,null,null,null,null,0,"أقل من المتوقع",null,null,null,null,null,null,100,"يفوق التوقعات",null,null,null,null,100,"يفوق التوقعات",null,null,null,null,100,"يفوق التوقعات",null,null,null,null,100,"يفوق التوقعات",null,null,null,null,100,"يفوق التوقعات",null,null,null,null,2]
[null,null,null,null,null,208,"ياسين محمود سامى علي",718,null,null,null,null,null,0,"أقل من المتوقع",null,null,null,null,null,null,null,null,0,"أقل من المتوقع",null,null,null,null,null,null,null,null,0,"أقل من المتوقع",null,null,null,null,null,null,null,null,0,"أقل من المتوقع",null,null,null,null,null,null,null,null,0,"أقل من المتوقع",null,null,null,null,null,null,null,null,0,"أقل من المتوقع",null,null,null,null,null,null,null,null,0,"أقل من المتوقع",null,null,null,null,null,null,null,null,0,"أقل من المتوقع",null,null,null,null,null,null,0,"أقل من المتوقع",null,null,0,"أقل من المتوقع",null,null,null,null,null,null,null,null,0,"أقل من المتوقع",null,null,null,null,null,null,100,"يفوق التوقعات",null,null,null,null,100,"يفوق التوقعات",null,null,null,null,100,"يفوق التوقعات",null,null,null,null,100,"يفوق التوقعات",null,null,null,null,100,"يفوق التوقعات",null,null,null,null,2]
[null,null,null,null,null,209,"يوسف احمد محمد محمد محمد ",719,null,null,null,null,null,0,"أقل من المتوقع",null,null,null,null,null,null,null,null,0,"أقل من المتوقع",null,null,null,null,null,null,null,null,0,"أقل من المتوقع",null,null,null,null,null,null,null,null,0,"أقل من المتوقع",null,null,null,null,null,null,null,null,0,"أقل من المتوقع",null,null,null,null,null,null,null,null,0,"أقل من المتوقع",null,null,null,null,null,null,null,null,0,"أقل من المتوقع",null,null,null,null,null,null,null,null,0,"أقل من المتوقع",null,null,null,null,null,null,0,"أقل من المتوقع",null,null,0,"أقل من المتوقع",null,null,null,null,null,null,null,null,0,"أقل من المتوقع",null,null,null,null,null,null,100,"يفوق التوقعات",null,null,null,null,100,"يفوق التوقعات",null,null,null,null,100,"يفوق التوقعات",null,null,null,null,100,"يفوق التوقعات",null,null,null,null,100,"يفوق التوقعات",null,null,null,null,2]
[null,null,null,null,null,210,"يوسف محمد عصام الدين عبد اللطيف",720,null,null,null,null,null,0,"أقل من المتوقع",null,null,null,null,null,null,null,null,0,"أقل من المتوقع",null,null,null,null,null,null,null,null,0,"أقل من المتوقع",null,null,null,null,null,null,null,null,0,"أقل من المتوقع",null,null,null,null,null,null,null,null,0,"أقل من المتوقع",null,null,null,null,null,null,null,null,0,"أقل من المتوقع",null,null,null,null,null,null,null,null,0,"أقل من المتوقع",null,null,null,null,null,null,null,null,0,"أقل من المتوقع",null,null,null,null,null,null,0,"أقل من المتوقع",null,null,0,"أقل من المتوقع",null,null,null,null,null,null,null,null,0,"أقل من المتوقع",null,null,null,null,null,null,100,"يفوق التوقعات",null,null,null,null,100,"يفوق التوقعات",null,null,null,null,100,"يفوق التوقعات",null,null,null,null,100,"يفوق التوقعات",null,null,null,null,100,"يفوق التوقعات",null,null,null,null,2]
[null,null,null,null,null,211,"اسيل اسامة شعبان عبالله شعبان",721,null,null,null,null,null,0,"أقل من المتوقع",null,null,null,null,null,null,null,null,0,"أقل من المتوقع",null,null,null,null,null,null,null,null,0,"أقل من المتوقع",null,null,null,null,null,null,null,null,0,"أقل من المتوقع",null,null,null,null,null,null,null,null,0,"أقل من المتوقع",null,null,null,null,null,null,null,null,0,"أقل من المتوقع",null,null,null,null,null,null,null,null,0,"أقل من المتوقع",null,null,null,null,null,null,null,null,0,"أقل من المتوقع",null,null,null,null,null,null,0,"أقل من المتوقع",null,null,0,"أقل من المتوقع",null,null,null,null,null,null,null,null,0,"أقل من المتوقع",null,null,null,null,null,null,100,"يفوق التوقعات",null,null,null,null,100,"يفوق التوقعات",null,null,null,null,100,"يفوق التوقعات",null,null,null,null,100,"يفوق التوقعات",null,null,null,null,100,"يفوق التوقعات",null,null,null,null,2]
[null,null,null,null,null,212,"تقي علاء احمد سلامه احمد",639,null,null,null,null,null,0,"أقل من المتوقع",null,null,null,null,null,null,null,null,0,"أقل من المتوقع",null,null,null,null,null,null,null,null,0,"أقل من المتوقع",null,null,null,null,null,null,null,null,0,"أقل من المتوقع",null,null,null,null,null,null,null,null,0,"أقل من المتوقع",null,null,null,null,null,null,null,null,0,"أقل من المتوقع",null,null,null,null,null,null,null,null,0,"أقل من المتوقع",null,null,null,null,null,null,null,null,0,"أقل من المتوقع",null,null,null,null,null,null,0,"أقل من المتوقع",null,null,0,"أقل من المتوقع",null,null,null,null,null,null,null,null,0,"أقل من المتوقع",null,null,null,null,null,null,100,"يفوق التوقعات",null,null,null,null,100,"يفوق التوقعات",null,null,null,null,100,"يفوق التوقعات",null,null,null,null,100,"يفوق التوقعات",null,null,null,null,100,"يفوق التوقعات",null,null,null,null,2]
[null,null,null,null,null,213,"جنات وليد سامي اسكندر  ابراهيم",640,null,null,null,null,null,0,"أقل من المتوقع",null,null,null,null,null,null,null,null,0,"أقل من المتوقع",null,null,null,null,null,null,null,null,0,"أقل من المتوقع",null,null,null,null,null,null,null,null,0,"أقل من المتوقع",null,null,null,null,null,null,null,null,0,"أقل من المتوقع",null,null,null,null,null,null,null,null,0,"أقل من المتوقع",null,null,null,null,null,null,null,null,0,"أقل من المتوقع",null,null,null,null,null,null,null,null,0,"أقل من المتوقع",null,null,null,null,null,null,0,"أقل من المتوقع",null,null,0,"أقل من المتوقع",null,null,null,null,null,null,null,null,0,"أقل من المتوقع",null,null,null,null,null,null,100,"يفوق التوقعات",null,null,null,null,100,"يفوق التوقعات",null,null,null,null,100,"يفوق التوقعات",null,null,null,null,100,"يفوق التوقعات",null,null,null,null,100,"يفوق التوقعات",null,null,null,null,2]
[null,null,null,null,null,214,"جني عاطف السيد فرحات شادي",641,null,null,null,null,null,0,"أقل من المتوقع",null,null,null,null,null,null,null,null,0,"أقل من المتوقع",null,null,null,null,null,null,null,null,0,"أقل من المتوقع",null,null,null,null,null,null,null,null,0,"أقل من المتوقع",null,null,null,null,null,null,null,null,0,"أقل من المتوقع",null,null,null,null,null,null,null,null,0,"أقل من المتوقع",null,null,null,null,null,null,null,null,0,"أقل من المتوقع",null,null,null,null,null,null,null,null,0,"أقل من المتوقع",null,null,null,null,null,null,0,"أقل من المتوقع",null,null,0,"أقل من المتوقع",null,null,null,null,null,null,null,null,0,"أقل من المتوقع",null,null,null,null,null,null,100,"يفوق التوقعات",null,null,null,null,100,"يفوق التوقعات",null,null,null,null,100,"يفوق التوقعات",null,null,null,null,100,"يفوق التوقعات",null,null,null,null,100,"يفوق التوقعات",null,null,null,null,2]
[null,471,null,null,null,215,"روناء عاشور السيد عاشور ابراهيم",642,null,null,null,null,null,0,"أقل من المتوقع",null,null,null,null,null,{"$f":"IF(T39>=85,\"يفوق التوقعات\",IF(T39>=65,\"يلبي التوقعات\",IF(T39>=50,\"يلبي التوقعات أحيانا\",IF(T39>=50,\"مقبول\",\"أقل من المتوقع\"))))","v":"أقل من المتوقع"},null,null,0,"أقل من المتوقع",null,null,null,null,null,{"$f":"IF(AD39>=85,\"يفوق التوقعات\",IF(AD39>=65,\"يلبي التوقعات\",IF(AD39>=50,\"يلبي التوقعات أحيانا\",IF(AD39>=50,\"مقبول\",\"أقل من المتوقع\"))))","v":"أقل من المتوقع"},null,null,0,"أقل من المتوقع",null,null,null,null,null,null,null,null,0,"أقل من المتوقع",null,null,null,null,null,null,null,null,0,"أقل من المتوقع",null,null,null,null,null,null,null,null,0,"أقل من المتوقع",null,null,null,null,null,null,null,null,0,"أقل من المتوقع",null,null,null,null,null,null,null,null,0,"أقل من المتوقع",null,null,null,null,null,null,0,"أقل من المتوقع",null,null,0,"أقل من المتوقع",null,null,null,null,null,null,null,null,0,"أقل من المتوقع",null,null,null,null,null,null,100,"يفوق التوقعات",null,null,null,null,100,"يفوق التوقعات",null,null,null,null,100,"يفوق التوقعات",null,null,null,null,100,"يفوق التوقعات",null,null,null,null,100,"يفوق التوقعات",null,null,null,null,2]
[null,472,null,null,null,216,"فاطمه على محمود عبدالمجيد",643,null,null,null,null,null,0,"أقل من المتوقع",null,null,null,null,null,{"$f":"IF(T40>=85,\"يفوق التوقعات\",IF(T40>=65,\"يلبي التوقعات\",IF(T40>=50,\"يلبي التوقعات أحيانا\",IF(T40>=50,\"مقبول\",\"أقل من المتوقع\"))))","v":"أقل من المتوقع"},null,null,0,"أقل من المتوقع",null,null,null,null,null,{"$f":"IF(AD40>=85,\"يفوق التوقعات\",IF(AD40>=65,\"يلبي التوقعات\",IF(AD40>=50,\"يلبي التوقعات أحيانا\",IF(AD40>=50,\"مقبول\",\"أقل من المتوقع\"))))","v":"أقل من المتوقع"},null,null,0,"أقل من المتوقع",null,null,null,null,null,null,null,null,0,"أقل من المتوقع",null,null,null,null,null,null,null,null,0,"أقل من المتوقع",null,null,null,null,null,null,null,null,0,"أقل من المتوقع",null,null,null,null,null,null,null,null,0,"أقل من المتوقع",null,null,null,null,null,null,null,null,0,"أقل من المتوقع",null,null,null,null,null,null,0,"أقل من المتوقع",null,null,0,"أقل من المتوقع",null,null,null,null,null,null,null,null,0,"أقل من المتوقع",null,null,null,null,null,null,100,"يفوق التوقعات",null,null,null,null,100,"يفوق التوقعات",null,null,null,null,100,"يفوق التوقعات",null,null,null,null,100,"يفوق التوقعات",null,null,null,null,100,"يفوق التوقعات",null,null,null,null,2]
[null,473,null,null,null,217,"فاطمه محمدعبدالونبس محمد شلف",644,null,null,null,null,null,0,"أقل من المتوقع",null,null,null,null,null,{"$f":"IF(T41>=85,\"يفوق التوقعات\",IF(T41>=65,\"يلبي التوقعات\",IF(T41>=50,\"يلبي التوقعات أحيانا\",IF(T41>=50,\"مقبول\",\"أقل من المتوقع\"))))","v":"أقل من المتوقع"},null,null,0,"أقل من المتوقع",null,null,null,null,null,{"$f":"IF(AD41>=85,\"يفوق التوقعات\",IF(AD41>=65,\"يلبي التوقعات\",IF(AD41>=50,\"يلبي التوقعات أحيانا\",IF(AD41>=50,\"مقبول\",\"أقل من المتوقع\"))))","v":"أقل من المتوقع"},null,null,0,"أقل من المتوقع",null,null,null,null,null,null,null,null,0,"أقل من المتوقع",null,null,null,null,null,null,null,null,0,"أقل من المتوقع",null,null,null,null,null,null,null,null,0,"أقل من المتوقع",null,null,null,null,null,null,null,null,0,"أقل من المتوقع",null,null,null,null,null,null,null,null,0,"أقل من المتوقع",null,null,null,null,null,null,0,"أقل من المتوقع",null,null,0,"أقل من المتوقع",null,null,null,null,null,null,null,null,0,"أقل من المتوقع",null,null,null,null,null,null,100,"يفوق التوقعات",null,null,null,null,100,"يفوق التوقعات",null,null,null,null,100,"يفوق التوقعات",null,null,null,null,100,"يفوق التوقعات",null,null,null,null,100,"يفوق التوقعات",null,null,null,null,2]
[null,474,null,null,null,218,"كنزي معتز احمد عبد الحافظ احمد",645,null,null,null,null,null,0,"أقل من المتوقع",null,null,null,null,null,null,null,null,0,"أقل من المتوقع",null,null,null,null,null,null,null,null,0,"أقل من المتوقع",null,null,null,null,null,null,null,null,0,"أقل من المتوقع",null,null,null,null,null,null,null,null,0,"أقل من المتوقع",null,null,null,null,null,null,null,null,0,"أقل من المتوقع",null,null,null,null,null,null,null,null,0,"أقل من المتوقع",null,null,null,null,null,null,null,null,0,"أقل من المتوقع",null,null,null,null,null,null,0,"أقل من المتوقع",null,null,0,"أقل من المتوقع",null,null,null,null,null,null,null,null,0,"أقل من المتوقع",null,null,null,null,null,null,100,"يفوق التوقعات",null,null,null,null,100,"يفوق التوقعات",null,null,null,null,100,"يفوق التوقعات",null,null,null,null,100,"يفوق التوقعات",null,null,null,null,100,"يفوق التوقعات",null,null,null,null,2]
[null,475,null,null,null,219,"ملك ناصر محمد عبدالله",646,null,null,null,null,null,0,"أقل من المتوقع",null,null,null,null,null,null,null,null,0,"أقل من المتوقع",null,null,null,null,null,null,null,null,0,"أقل من المتوقع",null,null,null,null,null,null,null,null,0,"أقل من المتوقع",null,null,null,null,null,null,null,null,0,"أقل من المتوقع",null,null,null,null,null,null,null,null,0,"أقل من المتوقع",null,null,null,null,null,null,null,null,0,"أقل من المتوقع",null,null,null,null,null,null,null,null,0,"أقل من المتوقع",null,null,null,null,null,null,0,"أقل من المتوقع",null,null,0,"أقل من المتوقع",null,null,null,null,null,null,null,null,0,"أقل من المتوقع",null,null,null,null,null,null,100,"يفوق التوقعات",null,null,null,null,100,"يفوق التوقعات",null,null,null,null,100,"يفوق التوقعات",null,null,null,null,100,"يفوق التوقعات",null,null,null,null,100,"يفوق التوقعات",null,null,null,null,2]
[null,476,null,null,null,220,"هنا محمود احمد  عبدالعزيز",647,null,null,null,null,null,0,"أقل من المتوقع",null,null,null,null,null,null,null,null,0,"أقل من المتوقع",null,null,null,null,null,null,null,null,0,"أقل من المتوقع",null,null,null,null,null,null,null,null,0,"أقل من المتوقع",null,null,null,null,null,null,null,null,0,"أقل من المتوقع",null,null,null,null,null,null,null,null,0,"أقل من المتوقع",null,null,null,null,null,null,null,null,0,"أقل من المتوقع",null,null,null,null,null,null,null,null,0,"أقل من المتوقع",null,null,null,null,null,null,0,"أقل من المتوقع",null,null,0,"أقل من المتوقع",null,null,null,null,null,null,null,null,0,"أقل من المتوقع",null,null,null,null,null,null,100,"يفوق التوقعات",null,null,null,null,100,"يفوق التوقعات",null,null,null,null,100,"يفوق التوقعات",null,null,null,null,100,"يفوق التوقعات",null,null,null,null,100,"يفوق التوقعات",null,null,null,null,2]
[]
[]
[]
[]
[]
[]
[]
[]
[]
[]
[]
[]
[null,487]
[]
[null,null,null,null,null,null,"يفوق التوقعات( اللون الأزرق )","من 100% - 85 % "]
[null,null,null,null,null,null,"يلبي التوقعات( اللون الأخضر )","من 65% لأقل من 85%"]
[null,null,null,null,null,null,"يلبي التوقعات أحيانا ( اللون الأصفر )","من 50% لأقل من 65 %"]
[null,null,null,null,null,null,"أقل من المتوقع ( اللون الأحمر )","من 1% لأقل 50 %"]
[null,null,null,null,null,null,null,null,null,null,null,null,"كتبه :",null,null,null,null,null,null,"راجع الكتابة :",null,null,null,null,null,"رئيس لجنة النظام والمراقبة",null,null,null,null,"مدير المدرسة",null,null,null,null,null,null,"التعليم الإبتدائى",null,null,null,null,null,null,null,null,null,null,"كتبه :",null,null,null,null,null,null,"راجع الكتابة :",null,null,null,null,null,null,null,null,null,null,"مدير المدرسة",null,null,null,null,null,null,"التعليم الإبتدائى",null,null,null,null,null,null,null,null,null,null,null,null,null,null,"كتبه :",null,null,null,null,null,null,null,null,null,null,null,"كتبه :",null,null,null,null,null,null,null,null,null,null,null,null,null,null,"راجع الكتابة :",null,null,null,null,null,"رئيس الكنترول",null,null,null,null,null,null,null,null,"مدير المدرسة",null,null,null,null,null,null,"التعليم الإبتدائى"]
[null,null,null,null,null,null,null,null,null,null,null,null,"أملاه :",null,null,null,null,null,null,"راجع الإملاء :",null,null,null,null,null,null,null,null,null,null,null,null,null,null,null,null,null,null,null,null,null,null,null,null,null,null,null,null,"أملاه :",null,null,null,null,null,null,"راجع الإملاء :",null,null,null,null,null,null,null,null,null,null,null,null,null,null,null,null,null,null,null,null,null,null,null,null,null,null,null,null,null,null,null,null,"أملاه :",null,null,null,null,null,null,null,null,null,null,null,"أملاه :",null,null,null,null,null,null,null,null,null,null,null,null,null,null,"راجع الإملاء :"]

{"sheet":"شهاده نصف العام","index":1,"n_rows":30,"n_cols":23,"rows_kept":30,"cut":false,"hidden":false,"merged":[[0,7,1,12],[3,0,3,4],[4,0,4,4],[5,0,5,4],[10,11,11,13],[12,4,12,11],[12,12,12,13],[14,3,18,3],[14,4,18,4],[14,5,18,5],[14,6,18,6],[14,15,18,15],[12,1,12,3],[14,16,18,16],[19,1,19,2],[20,1,20,2],[14,7,18,7],[14,8,18,8],[14,9,18,9],[14,10,18,10],[14,11,18,11],[14,12,18,12],[14,1,18,2],[29,0,29,2],[22,2,22,4],[22,10,22,12],[24,0,25,2],[24,4,25,6],[24,8,25,10],[24,12,25,14],[26,0,27,2],[26,4,27,6],[26,8,27,10],[26,12,27,14],[7,4,9,14],[28,8,28,10],[14,13,18,13],[14,14,18,14],[10,14,11,15],[12,14,12,15]]}
[]
[]
[]
["محافظة القاهرة"]
["إدارة المعادي التعليمية"]
["مدرسة حدائق المعادي القومية",null,null,null,null,null,null,null,null,null,null,null,null,null,null,null,null,null,null,null,null,{"$f":"MIN('رصد 4 عربى'!F13:F1000)","v":189},{"$f":"MAX('رصد 4 عربى'!F13:F1000)","v":220}]
[null,null,null,null,"         "]
[null,null,null,null,"الصف الرابع الإبتدائي ( القسم العربي )"]
[]
[]
[null,null,null,null,null,null,null,null,null,null,null,"رقم الجلوس /",null,null,220]
[]
[null,"إسم الطالب /",null,null,{"$f":"VLOOKUP($O$11,'رصد 4 عربى'!F13:EN44,2,FALSE)","v":"هنا محمود احمد  عبدالعزيز"},null,null,null,null,null,null,null,"الترتيب ",null,{"$f":"VLOOKUP($O$11,'رصد 4 عربى'!F13:EN44,139,FALSE)","v":2},{"$f":"VLOOKUP($O$11,'رصد 4 عربى'!E6:EH50,134,FALSE)","v":{"$error":"#N/A"}}]
[]
[null,"المادة",null,"اللغة العربية \nوالخط","الرياضيات","  الدراسات \nالإجتماعية","العلوم","اللغة الإنجليزية","المهارات المهنيه","تكنولوجيا المعلومات و الاتصالات","التربيه الدينيه","التقدير العام","القيم و احترام الأخر","التربيه الفنيه","التربيه الموسيقيه","التربيه الرياضيه","التوكاتسو"]
[]
[]
[]
[]
[null,"التقدير",null,{"$f":"VLOOKUP($O$11,'رصد 4 عربى'!F13:EN44,10,FALSE)","v":"أقل من المتوقع"},{"$f":"VLOOKUP($O$11,'رصد 4 عربى'!F13:EN44,20,FALSE)","v":"أقل من المتوقع"},{"$f":"VLOOKUP($O$11,'رصد 4 عربى'!F13:EN44,30,FALSE)","v":"أقل من المتوقع"},{"$f":"VLOOKUP($O$11,'رصد 4 عربى'!F13:EN44,40,FALSE)","v":"أقل من المتوقع"},{"$f":"VLOOKUP($O$11,'رصد 4 عربى'!F13:EN44,50,FALSE)","v":"أقل من المتوقع"},{"$f":"VLOOKUP($O$11,'رصد 4 عربى'!F13:EN44,60,FALSE)","v":"أقل من المتوقع"},{"$f":"VLOOKUP($O$11,'رصد 4 عربى'!F13:EN44,70,FALSE)","v":"أقل من المتوقع"},{"$f":"VLOOKUP($O$11,'رصد 4 عربى'!F13:EN44,80,FALSE)","v":"أقل من المتوقع"},{"$f":"VLOOKUP($O$11,'رصد 4 عربى'!F13:EN44,88,FALSE)","v":"أقل من المتوقع"},{"$f":"VLOOKUP($O$11,'رصد 4 عربى'!F13:EN44,110,FALSE)","v":"يفوق التوقعات"},{"$f":"VLOOKUP($O$11,'رصد 4 عربى'!F13:EN44,116,FALSE)","v":"يفوق التوقعات"},{"$f":"VLOOKUP($O$11,'رصد 4 عربى'!F13:EN44,122,FALSE)","v":"يفوق التوقعات"},{"$f":"VLOOKUP($O$11,'رصد 4 عربى'!F13:EN44,128,FALSE)","v":"يفوق التوقعات"},{"$f":"VLOOKUP($O$11,'رصد 4 عربى'!F13:EN44,134,FALSE)","v":"يفوق التوقعات"}]
[null,"التقييم بالألوان",null,{"$f":"VLOOKUP($O$11,'رصد 4 عربى'!F13:EN44,10,FALSE)","v":"أقل من المتوقع"},{"$f":"VLOOKUP($O$11,'رصد 4 عربى'!F13:EN44,20,FALSE)","v":"أقل من المتوقع"},{"$f":"VLOOKUP($O$11,'رصد 4 عربى'!F13:EN44,30,FALSE)","v":"أقل من المتوقع"},{"$f":"VLOOKUP($O$11,'رصد 4 عربى'!F13:EN44,40,FALSE)","v":"أقل من المتوقع"},{"$f":"VLOOKUP($O$11,'رصد 4 عربى'!F13:EN44,50,FALSE)","v":"أقل من المتوقع"},{"$f":"VLOOKUP($O$11,'رصد 4 عربى'!F13:EN44,60,FALSE)","v":"أقل من المتوقع"},{"$f":"VLOOKUP($O$11,'رصد 4 عربى'!F13:EN44,70,FALSE)","v":"أقل من المتوقع"},{"$f":"VLOOKUP($O$11,'رصد 4 عربى'!F13:EN44,80,FALSE)","v":"أقل من المتوقع"},{"$f":"VLOOKUP($O$11,'رصد 4 عربى'!F13:EN44,88,FALSE)","v":"أقل من المتوقع"},{"$f":"VLOOKUP($O$11,'رصد 4 عربى'!F13:EN44,110,FALSE)","v":"يفوق التوقعات"},{"$f":"VLOOKUP($O$11,'رصد 4 عربى'!F13:EN44,116,FALSE)","v":"يفوق التوقعات"},{"$f":"VLOOKUP($O$11,'رصد 4 عربى'!F13:EN44,122,FALSE)","v":"يفوق التوقعات"},{"$f":"VLOOKUP($O$11,'رصد 4 عربى'!F13:EN44,128,FALSE)","v":"يفوق التوقعات"},{"$f":"VLOOKUP($O$11,'رصد 4 عربى'!F13:EN44,134,FALSE)","v":"يفوق التوقعات"}]
[]
[null,null,"كتبه /  سماء إبراهيم",null,null,null,null,null,null,null,"أملاه / محمد خيرى"]
[]
["   رئيس المرحلة",null,null,null,"وكيل القسم ",null,null,null,"نائب المدير",null,null,null,"مدير عام المدارس"]
[]
["أ / مدحت رمضان",null,null,null,"أ / سحر يحيى",null,null,null,"أ / أحمد عبد الحميد",null,null,null,"د / جمال شمس"]
[]
[]
["نظام التقييم للمتعلم :"]